Cogmind - Beta 16.1 @@@ ROGUE MODE // 2026.04.01 @ 10:08:22 Player: Lazz Result: Destroyed by W6-GZP(R) with Subdweller Beam Cannon Performance ------------- Evolutions (0) 0 Regions Visited (2) 400 Robots Destroyed (23) 115 Value Destroyed (359) 359 Prototype IDs (0) 0 Alien Tech Used (0) 0 Bonus (-1) -1 TOTAL SCORE: 873 Bonus ------- Friendly Fire -1 Cogmind --------- Core Integrity 0/250 Matter 223/300 Energy 100/100 System Corruption 0% Temperature Cool (9) Movement Rolling (105) Ox1 Location -10/Subcaves Parts ------- > --- POWER (1) -------- (None) > --- PROPULSION (2) --- Wheel Compact Wheel > --- UTILITY (2) ------ High-capacity Storage Unit Seismic Detector > --- WEAPON (2) ------- Subdweller Machine Gun Makeshift Spear > --- INVENTORY (20) --- Light Nuclear Core Aluminum Leg Aluminum Leg Aluminum Leg Aluminum Leg Medium Battery (150) Medium Matter Pod (100) Medium Matter Pod (100) Heavy Assault Rifle Heavy Assault Rifle Heavy Assault Rifle Battle Rifle Mining Laser Scrap Shield Fragment (46) Peak State ------------ > --- POWER ------------ Ion Engine > --- PROPULSION ------- Aluminum Leg Aluminum Leg > --- UTILITY ---------- High-capacity Storage Unit Seismic Detector > --- WEAPON ----------- Subdweller Machine Gun Makeshift Spear > --- INVENTORY -------- Light Nuclear Core Aluminum Leg Aluminum Leg Wheel Compact Wheel Medium Battery Medium Matter Pod Medium Matter Pod Heavy Assault Rifle Heavy Assault Rifle Heavy Assault Rifle Battle Rifle Mining Laser Scrap Shield Fragment [Rating: 13] Favorites ----------- Power Ion Engine Engine Ion Engine Propulsion Aluminum Leg Leg Aluminum Leg Wheel Wheel Utility Seismic Detector Device Seismic Detector Storage High-capacity Storage Unit Weapon Heavy Assault Rifle Ballistic Gun Heavy Assault Rifle Launcher Grenade Launcher Piercing Weapon Makeshift Spear Build | -11 -10 -10 ------- Run | Yrd Mat Sub Slots Evolved . | . . . Power . | . . . Propulsion . | . . . Utility . | . . . Weapon . | . . . Parts Attached 19 | 7 5 7 Power 2 | 1 1 . Engine 2 | 1 1 . Core . | . . . Reactor . | . . . Propulsion 6 | 2 . 4 Treads . | . . . Leg 4 | 2 . 2 Wheel 2 | . . 2 Hover . | . . . Flight . | . . . Utility 3 | 2 1 . Device 1 | 1 . . Storage 2 | 1 1 . Processor . | . . . Hackware . | . . . Protection . | . . . Artifact . | . . . Weapon 8 | 2 3 3 Energy Gun . | . . . Energy Cannon . | . . . Ballistic Gun 6 | 2 2 2 Ballistic Cannon . | . . . Launcher 1 | . 1 . Special Weapon . | . . . Impact Weapon . | . . . Slashing Weapon . | . . . Piercing Weapon 1 | . . 1 Special Melee Weapon . | . . . Unidentified Prototypes . | . . . Parts Lost 5 | . . 5 Power 1 | . . 1 Propulsion 2 | . . 2 Utility . | . . . Weapon 2 | . . 2 Highest Loss Streak 3 | . . 3 To Critical Strikes . | . . . Average Backups 11 | 3 10 13 Power . | . . 1 Propulsion 4 | 1 3 4 Utility 2 | . 2 3 Weapon 4 | 1 3 4 Tool/Special . | . . . Unused Backups 10 | . 1 9 Power 1 | . . 1 Propulsion 2 | . . 2 Utility 3 | . . 3 Weapon 4 | . 1 3 Tool/Special . | . . . Average Slot Usage (%) 99 | . 100 99 Engine 13 | . 14 13 Leg 27 | . 28 26 Device 14 | . 14 14 Storage 14 | . 14 14 Ballistic Gun 25 | . 27 25 Piercing Weapon 1 | . . 1 Peak Build Rating 13 | 7 10 13 Average Rating 10 | 6 9 10 On Entrance 5 | . 7 10 Avg Prop Armor Cover (%) . | . . . Naked Turns . | . . . Heaviest Build 53 | 15 52 53 Greatest Support 26 | 20 20 26 Greatest Overweight (x) 2 | 1 2 2 Average Overweight (x) 1 | . . 1 Largest Inventory Capacity 20 | 8 20 20 Average Capacity 18 | 7 16 20 Most Carried 15 | 6 15 15 Average Carried 11 | 3 10 13 Final Capacity 20 | 8 20 20 Final Carried 14 | 6 14 14 Class Distribution -------------------- 73% | Mutant 26% | Scavenger-Mutant Dominant Class ---------------- Mutant | -10/Materials Mutant | -10/Subcaves Resources | -11 -10 -10 ----------- Run | Yrd Mat Sub Matter Collected 862 | 485 245 132 Remotely . | . . . Salvage Created 688 | 245 373 70 Parts 55 | 19 32 4 Haulers Intercepted 1 | . 1 . Recyclers Shooed 1 | 1 . . Parts Field Recycled . | . . . Retrieved Matter . | . . . Parts Self-Destructed 16 | . . 16 Prevented . | . . . Parts Restored . | . . . Kills | -11 -10 -10 ------- Run | Yrd Mat Sub Combat Hostiles Destroyed 12 | . 10 2 Guns 9 | . 7 2 AOE 3 | . 3 . Classes Destroyed 8 | 3 3 2 Worker 3 | 2 1 . Tunneler 5 | 5 . . Hauler 1 | . 1 . Recycler 2 | 1 1 . Swarmer 6 | . 6 . Grunt 4 | . 4 . Sentry 1 | . . 1 Subdweller 1 | . . 1 Best Kill Streak 5 | 5 4 1 Combat Bots Only 3 | . 3 1 Max Kills in Single Turn 4 | 1 4 1 Gunslinging . | . . . Exploded 3 | . 3 . Melee . | . . . Uniques/NPCs Destroyed . | . . . Combat | -11 -10 -10 -------- Run | Yrd Mat Sub Hostile Shots Fired 80 | . 43 37 Missed 19 | . 12 7 Hits 61 | . 31 30 Projectile 61 | . 31 30 Critical Strikes 4 | . 1 3 Damage Taken 1050 | . 376 674 Core 259 | . 61 198 Absorbed by Shields . | . . . Core Remaining (%) 100 | 100 . . Volleys Fired 55 | 14 20 21 Largest 2 | 2 2 2 Hottest 53 | 40 53 53 Shots Fired 103 | 28 40 35 Gun 96 | 28 39 29 Cannon . | . . . Launcher 7 | . 1 6 Special . | . . . Kinetic 96 | 28 39 29 Thermal . | . . . Explosive 7 | . 1 6 Electromagnetic . | . . . Robot Hit Streak 14 | 13 14 12 Robot Miss Streak 3 | 1 3 2 Penetration Max . | . . . Secondary Targets 2 | . 2 . Max Gunslinging Chain 1 | . 1 . Shots Hit Robots 64 | 17 26 21 Core Hits 31 | 9 17 5 Critical Kills . | . . . Critical Parts Destroyed . | . . . Critical Strikes . | . . . Melee Attacks 4 | . . 4 Impact . | . . . Slashing . | . . . Piercing 4 | . . 4 Sneak Attacks . | . . . Combat Hostiles . | . . . Follow-up Attacks . | . . . Damage Inflicted 1091 | 205 545 341 Guns 930 | 205 412 313 Cannons . | . . . Explosions 161 | . 133 28 Melee . | . . . Ramming . | . . . Kinetic 930 | 205 412 313 Thermal . | . . . Explosive 161 | . 133 28 Electromagnetic . | . . . Impact . | . . . Slashing . | . . . Piercing . | . . . Highest Corruption . | . . . Average Corruption . | . . . Corruption Purged . | . . . Corruption Blocked . | . . . Overload Shots . | . . . Overflow Damage . | . . . Projectiles . | . . . Explosions . | . . . Melee . | . . . Knockbacks . | . . . Impact . | . . . Kinetic . | . . . Secondary . | . . . Self-Inflicted Damage 79 | . 31 48 Shots 4 | . 1 3 Rammed . | . . . Targets Rammed . | . . . Kicked . | . . . Crushed . | . . . Highest Temperature 22 | . 22 2 Average Temperature 5 | . 5 2 Received Heat Transfer 276 | . 159 117 Siege Activations . | . . . Martial Activations . | . . . Shielding Activations . | . . . Robots Disrupted . | . . . Combat Hostiles . | . . . Robots Corrupted . | . . . Combat Hostiles . | . . . Parts Fried . | . . . Impact Corruptions . | . . . Robots Melted . | . . . Combat Hostiles . | . . . Parts Melted . | . . . Heat Transferred . | . . . Parts Sabotaged . | . . . Parts Stolen . | . . . Parts Stripped . | . . . Power Chain Reactions . | . . . Alert | -11 -10 -10 ------- Run | Yrd Mat Sub Maximum Alert Level . | . . . Low Security (%) 100 | 100 100 . Level 1 . | . . . Level 2 . | . . . Level 3 . | . . . Level 4 . | . . . Level 5 . | . . . High Security . | . . . Max Security . | . . . Peak Influence 197 | 15 197 . Initial . | . . . Average 65 | 1 84 . Influence Increases 327 | 40 267 20 Destroy 0b10 Robot/C 220 | . 200 20 Destroy 0b10 Robot/NC 55 | 40 15 . Destroy Leader 42 | . 42 . Destroy Structure 10 | . 10 . Influence Decreases 327 | 40 182 105 Entered New Map 41 | . . 41 Time Decay 286 | 40 182 64 Squads Dispatched . | . . . Investigation . | . . . Extermination . | . . . Reinforcement . | . . . Assault . | . . . Garrison . | . . . Intercept . | . . . Searches Triggered . | . . . Construction Impeded . | . . . Haulers Reinforced . | . . . Active Scanning Responses . | . . . Cargo Convoy Interrupts . | . . . Stealth | -11 -10 -10 --------- Run | Yrd Mat Sub Distress Signals . | . . . Communications Jammed . | . . . Distress Signals . | . . . Times Spotted 14 | . 10 4 Peak Tracking Total 3 | . 3 2 Tactical Retreats 1 | . . 1 Traps | -11 -10 -10 ------- Run | Yrd Mat Sub Traps Triggered . | . . . Indirectly . | . . . Trap Hack Attempts . | . . . Triggered . | . . . Disarmed . | . . . Reprogrammed . | . . . Reused . | . . . Traps Extracted . | . . . Installed . | . . . Triggered . | . . . Machines | -11 -10 -10 ---------- Run | Yrd Mat Sub Machines Disabled . | . . . Max in Single Turn . | . . . Machines Repaired . | . . . Machines Dismantled . | . . . Machines Sabotaged . | . . . Overloaded Fab Kills . | . . . Hacking | -11 -10 -10 --------- Run | Yrd Mat Sub Machines Accessed 3 | . 3 . Terminals 3 | . 3 . Fabricators . | . . . Repair Stations . | . . . Recycling Units . | . . . Scanalyzers . | . . . Garrison Access . | . . . Total Hacks 10 | . 10 . Successful 2 | . 2 . Failed 8 | . 8 . Catastrophic 2 | . 2 . Database Lockouts . | . . . Manual 8 | . 8 . Terminals 10 | . 10 . Fabricators . | . . . Repair Stations . | . . . Recycling Units . | . . . Scanalyzers . | . . . Garrison Access . | . . . Terminal Hacks 2 | . 2 . Terminal Index 1 | . 1 . Zone Layout 1 | . 1 . Fabricator Hacks . | . . . Repair Station Hacks . | . . . Recycling Unit Hacks . | . . . Scanalyzer . | . . . Garrison Access Hacks . | . . . Unauthorized Hacks . | . . . Terminals . | . . . Fabricators . | . . . Repair Stations . | . . . Recycling Units . | . . . Scanalyzers . | . . . Garrison Access . | . . . Data Cores Recovered . | . . . Used . | . . . Hacking Detections 3 | . 3 . Full Trace Events . | . . . Feedback Events . | . . . Feedback Blocked . | . . . Robot Schematics Acquired . | . . . Robots Built . | . . . Authchips . | . . . Time . | . . . Total Robot Build Rating . | . . . Part Schematics Acquired . | . . . Parts Built . | . . . Authchips . | . . . Time . | . . . Total Part Build Rating . | . . . Part Studies Acquired . | . . . Parts Repaired . | . . . Time . | . . . Parts Recycled . | . . . Recycled Matter . | . . . Retrieved Matter . | . . . Retrieved Components . | . . . Parts Scanalyzed . | . . . Part Schematics Acquired . | . . . Parts Damaged . | . . . Bothacking | -11 -10 -10 ------------ Run | Yrd Mat Sub Used RIF Installer . | . . . Robots Hacked . | . . . Non-combat . | . . . Combat . | . . . Robot Hacks Applied . | . . . Relay Couplers Released . | . . . Fabnet Peak Effective % . | . . . Robots Rewired . | . . . Allies Hacked . | . . . Hacks Repelled . | . . . Allies | -11 -10 -10 -------- Run | Yrd Mat Sub Total Allies . | . . . Largest Group . | . . . Highest-Rated Group . | . . . Highest-Rated Ally . | . . . Total Orders . | . . . Ally Attacks . | . . . Total Damage . | . . . Kills . | . . . Allies Corrupted . | . . . Allies Melted . | . . . Intel | -11 -10 -10 ------- Run | Yrd Mat Sub Active Infowar (turns) 2336 | 95 677 1564 Seismic 2336 | 95 677 1564 Robot Analysis Total . | . . . Derelict Logs Recovered 1 | . . 1 Drone Launches . | . . . Drone Recoveries . | . . . Exploration | -11 -10 -10 ------------- Run | Yrd Mat Sub Turns Passed 2436 | 195 677 1564 Spaces Moved 985 | 109 271 605 Core 6 | 6 . . Treads . | . . . Legs 917 | 103 271 543 Wheels 62 | . . 62 Hover . | . . . Flight . | . . . Fastest Speed 50 | 50 120 105 Average Speed 212 | 116 181 244 Slowest Speed 260 | 120 260 260 Overloaded Moves . | . . . Propulsion Burnouts . | . . . Robots Hopped . | . . . Potential Cave-ins . | . . . Cave-ins Triggered . | . . . Exploration Rate (%) 34 | 4 59 39 Regions Visited 2 Branch Regions 1 Pre-discovered Areas . | . . . Known Exits Taken . | . . . Unknown Exits Taken 2 | 1 1 . Scrap Searched . | . . . Spaces Dug 5 | . . 5 Terrain Destroyed 29 | . 8 21 Melee . | . . . Projectile . | . . . AOE 29 | . 8 21 Terrain Rammed . | . . . Walls Destroyed . | . . . Machines Disabled . | . . . Actions | -11 -10 -10 --------- Run | Yrd Mat Sub Total 1215 | 145 419 651 Wait 128 | 10 109 9 Move 983 | 108 270 605 Hop . | . . . Pick Up 19 | 6 9 4 Fast Attach 7 | 7 . . Attach 4 | . . 4 Detach . | . . . Swap 10 | . 6 4 Drop 5 | . 5 . Fire 55 | 14 20 21 Melee 4 | . . 4 Ram . | . . . Kick . | . . . Crush . | . . . Escape Stasis . | . . . Rewire . | . . . Trap . | . . . Miscellaneous . | . . . Route ------- -11/Scrapyard -10/Materials (discovered 3 exits: [*Mat x2] / [*Sub]) -10/Subcaves History --------- Turn | Location | Event 8 | -11/Scrapyard | Discovered new exit (range 15) 196 | -11/Scrapyard | Entered Materials 312 | -10/Materials | Build established: Mutant 315 | -10/Materials | Discovered new exit (range 5) 667 | -10/Materials | Discovered new exit (range 6) 834 | -10/Materials | Discovered new exit (range 15) 873 | -10/Materials | Entered Subcaves 874 | -10/Subcaves | Approached by a straggling Scientist 1246 | -10/Subcaves | Learned Materials stockpile data 1508 | -10/Subcaves | A swath of the cavern ceiling suddenly collapsed 1716 | -10/Subcaves | Core integrity fell below 50% 1744 | -10/Subcaves | Core integrity fell below 20% 1768 | -10/Subcaves | Lost 3 parts (1n2w) 2008 | -10/Subcaves | Build established: Scavenger-Mutant 2437 | -10/Subcaves | Destroyed by W6-GZP(R) with Subdweller Beam Cannon Last Messages --------------- 4B-847(c): "I think it's somewhere east of here" 01905_ Acquired 7 matter. 4B-847(c): "I think it's somewhere east of here" 01951_ Acquired Mak. Spear. 4B-847(c): "I think it's somewhere east of here" 02066_ 1K-P7F(u) tweaks Twisted Machinery. 4B-847(c): "I think it's somewhere east of here" 4B-847(c): "We're getting close, I can feel it." 02271_ Acquired Battle Rifle. 02289_ 1K-P7F(u) builds Twisted Machinery. 4B-847(c): "We're getting close, I can feel it." 02321_ Acquired 10 matter. 4B-847(c): "I think it's somewhere south of here" 02372_ Ion Engine destroyed. 4B-847(c): "We're getting close, I can feel it." 02407_ 1K-P7F(u) tweaks Twisted Machinery. 02411_ 1K-P7F(u) builds Twisted Machinery. Map ----- +----------------------------------------------------+ | #??????????#####?## #???????????????????? | | #?????????## #?# ##???????????????????? | | ##???????### ### #######??????????????? | | ##??????### ## ##?????????????? | | #########" " #?????????????? | | ## #""" " ##?????????????? | | "" """" "" ###??????????????? | | """ " " "" #????????????????? | | ##"" ## #### """ #????????????????? | | ########## ##??#""" ## #????????????????? | | ????????# #???###" ## ##????????????????? | | ???????# ## ?#" ### ##?????????????????? | | ??????# "# #?###??##??????????????? | | ??????##" "" ######## #??????????????? | | ########"" # #"" # # #??????????????? | | ## # #"""" ###### "" #??????????????? | | # """ #????##"" # ## ##??????????????? | | "" ##???# ##### ###?????????????? | | ## """""#?#"! ##???#R #?????????????? | | #### ###""" #??# # #???## ##?????????????? | | #??##### ##?#" ## ##???# #??????????????? | | #?????# #??# ?##????## #??????????????? | | #??#### #??##????????# ##??????????????? | | #### ###??????????# ###???????????????? | | # # ##?????????# #????????????????? | | #????????##@ #????????????????? | | #????????# #????????????????? | | # # #????????## ##????????????????? | | ####### ##?????????## #?????????????????? | | ??????# ###???????????###?????????????????? | | #????## #####?????????????????????????????? | | ###### #?????????????????????????????? | | ##?????????????????????????????? | | ##### ##??????????????????????????????? | | #####???###???????????????????????????????? | | ####?????????????????????????????????????????? | | ?????????????????????????????????????????????? | | ?????????????????????????????????????????????? | | ?????????????????????????????????????????????? | | ?????????????????????????????????????????????? | | ?????????????????????????????????????????????? | | ?????????????????????????????????????????????? | | ?????????????????????????????????????????????? | | ?????????????????????????????????????????????? | | ?????????????????????????????????????????????? | | ?????????????????????????????????????????????? | | ?????????????????????????????????????????????? | | ?????????????????????????????????????????????? | | ?????????????????????????????????????????????? | | ?????????????????????????????????????????????? | +----------------------------------------------------+ Best States ------------- Heat Dissipation 25 Energy Generation 10 Energy Capacity 250 Matter Stores 300 Matter Capacity 300 Sight Range 16 Terrain Scan Density 10 Evasion (%) 55 Item Schematics ----------------- None Robot Schematics ------------------ None Fabricated ------------ Nothing Repaired ---------- Nothing Studied --------- None Alien Tech Used ----------------- None Achievements -------------- None Challenges ------------ None Game ------ Seed GrapheneSapperShearcannon Manual? 0 Play Time 00:13:29 Cumulative 142.6 hours Start 2026.04.01 @ 09:32:30 End 2026.04.01 @ 10:08:22 Sessions 1 Manual Loads 0 Difficulty Rogue Special Mode None Game No. 210 Rogue 210 Adventurer 0 Explorer 0 Win Type - Total 1 Types 1/0/0/0/0/0/0/0/0/0 Lore% 65 Gallery% 56 Achievement% 42 Wizard Run 0 Options --------- Layout 2 ASCII 0 Keyboard 0 Movement Mouse Keybinds 0 Fullscreen 1 Font 24/Smallcaps Map View 50x44 Zoom Use 0% Tactical HUD 1 Map Filters NONE Filters NONE Steam 1 RUN: cd170a80-4b71-45d5-bb20-520718f7d2d8